bitfinex/quotes_ETHUSD_20240601
["timestamp","ask_amount","ask_price","bid_price","bid_amount"]
[1717257837836,2.2773,3803.7,3803.0,0.709]
[1717257838224,2.2773,3803.7,3802.8,2.62962]
[1717257838540,0.55,3803.6,3803.1,0.709]
[1717257838899,0.55,3803.6,3802.8,2.62962]
[1717257839404,0.55,3803.6,3803.0,0.709]
[1717257841438,0.55,3803.6,3802.8,2.62962]
[1717257841643,0.55,3803.6,3802.9,0.709]
[1717257843147,0.55,3803.6,3803.1,0.709]
[1717257846266,0.55,3803.6,3802.8,2.62962]
[1717257846483,0.55,3803.6,3802.9,0.709]
[1717257852466,2.3597,3803.5,3802.9,0.709]
[1717257852985,0.55,3803.4,3802.3,2.62993]
[1717257853145,0.55,3803.4,3802.5,0.709]
[1717257853146,2.3597,3803.3,3802.5,0.709]
[1717257854156,2.3597,3803.3,3802.6,0.709]
[1717257856797,0.55,3803.2,3802.3,2.62993]
[1717257857020,0.55,3803.2,3802.5,0.709]
[1717257859300,2.62947,3803.1,3801.8,2.63029]
[1717257859518,2.3597,3802.9,3802.4,0.709]
[1717257860021,2.3597,3802.9,3802.6,0.709]
[1717257860221,2.3597,3802.9,3801.8,2.63029]
[1717257860394,2.3597,3802.9,3802.5,0.709]
[1717257861215,2.3597,3802.9,3802.4,0.709]
[1717257861419,2.3597,3802.9,3802.6,0.709]
[1717257861625,2.62947,3803.1,3802.8,0.709]
[1717257861796,0.55,3803.2,3802.8,0.709]
[1717257863008,0.55,3803.2,3803.0,0.709]
[1717257863416,0.55,3803.2,3802.8,0.709]
[1717257865142,2.3597,3803.6,3803.0,0.709]
[1717257865448,2.3597,3803.6,3803.2,0.709]
[1717257867510,2.3597,3803.6,3802.6,2.62975]
[1717257867713,2.3597,3803.6,3803.1,0.709]
[1717257869343,2.3597,3803.6,3802.9,0.709]
[1717257870621,2.3597,3803.6,3803.1,0.709]
[1717257872855,2.62878,3804.1,3803.3,0.709]
[1717257873148,0.55,3804.0,3803.3,0.709]
[1717257873950,2.62888,3803.9,3803.3,0.709]
[1717257874154,0.55,3803.8,3803.3,0.709]
[1717257874314,0.55,3803.8,3803.1,3.0573]
[1717257875243,0.55,3803.8,3803.1,0.709]
[1717257876360,2.3055,3803.7,3803.1,0.709]
[1717257876532,0.55,3803.6,3802.9,0.709]
[1717257877150,0.55,3803.8,3802.9,0.709]
[1717257880153,0.55,3803.8,3802.8,2.3483]
[1717257880356,2.3055,3803.7,3802.7,0.709]
[1717257880854,2.3055,3803.7,3802.6,2.62975]
[1717257881027,2.3055,3803.7,3802.6,3.33875]
[1717257884381,2.62918,3803.5,3802.1,5.53041591]
[1717257884684,2.3055,3803.4,3802.1,5.53041591]
[1717257884887,2.3055,3803.4,3802.4,0.709]
[1717257885049,2.3055,3803.4,3802.1,4.97837]
[1717257885050,2.62937,3803.2,3802.1,4.97837]
[1717257885375,2.62937,3803.2,3802.3,0.709]
[1717257885376,2.3055,3803.0,3802.3,0.709]
[1717257886482,2.3055,3803.0,3802.4,0.709]
[1717257888782,2.3055,3803.0,3802.6,0.709]
[1717257891503,2.3055,3803.0,3802.1,4.97837]
[1717257891652,2.3055,3803.0,3802.4,0.709]
[1717257893989,2.3055,3803.0,3802.1,4.97837]
[1717257894197,2.3055,3803.0,3802.3,0.709]
[1717257894356,2.3055,3803.0,3802.1,2.63007]
[1717257894766,2.3055,3803.0,3802.3,0.709]
[1717257895479,2.3055,3803.0,3802.2,0.709]
[1717257895883,0.55,3802.9,3802.2,0.709]
[1717257896700,0.55,3802.9,3801.6,2.63042]
[1717257897002,0.55,3802.9,3802.2,0.709]
[1717257897609,0.55,3802.9,3801.7,5.3674]
[1717257897789,0.55,3802.9,3802.2,0.709]
[1717257898104,0.55,3802.9,3801.7,5.3674]
[1717257898263,0.55,3802.9,3802.2,0.709]
[1717257898599,2.62964,3802.8,3801.7,5.3674]
[1717257898899,3.0121,3802.7,3802.0,0.709]
[1717257899400,2.62981,3802.6,3801.6,2.63042]
[1717257899706,0.55,3802.5,3801.6,2.63042]
[1717257899889,0.55,3802.5,3802.0,0.709]
[1717257900496,0.55,3802.5,3801.6,2.63042]
[1717257900711,0.55,3802.5,3801.8,0.709]
[1717257901007,0.55,3802.5,3801.6,2.63042]
[1717257901380,0.55,3802.5,3801.8,0.709]
[1717257902278,0.55,3802.5,3801.6,2.63042]
[1717257902279,2.4621,3802.4,3801.6,2.63042]
[1717257902504,2.4621,3802.4,3801.8,0.709]
[1717257902996,2.4621,3802.4,3801.7,0.709]
[1717257904795,0.55,3802.3,3801.4,7.32]
[1717257905313,0.55,3802.3,3801.7,0.709]
[1717257906398,0.55,3802.3,3801.4,7.32]
[1717257906707,5.0922,3802.2,3801.4,7.32]
[1717257906869,0.55,3802.1,3801.4,8.029]
[1717257908607,0.55,3802.1,3801.5,0.709]
[1717257909110,0.55,3802.1,3801.1,2.63076]
[1717257909416,0.55,3802.1,3801.5,0.709]
[1717257910405,0.55,3802.1,3801.1,2.63076]
[1717257910616,2.2883,3802.0,3801.1,2.63076]
[1717257910783,2.2883,3802.0,3801.4,0.709]
[1717257911484,2.2883,3802.0,3801.1,2.63076]
[1717257911714,2.2883,3802.0,3801.4,0.709]
[1717257914408,2.2883,3802.0,3801.1,2.63076]
[1717257914409,2.2883,3802.0,3801.6,0.709]
[1717257915900,2.2883,3802.0,3801.1,2.63076]
[1717257916103,2.2883,3802.0,3801.3,0.709]
[1717257916304,2.2883,3802.0,3801.5,0.709]
[1717257917781,2.2883,3802.0,3801.1,2.63076]
[1717257917984,2.2883,3802.0,3801.6,0.709]
[1717257921651,2.3252,3802.4,3801.8,0.709]
[1717257921798,2.62975,3802.7,3802.0,0.709]
[1717257922010,0.709,3803.0,3802.2,0.709]
[1717257922011,2.3252,3803.0,3802.2,0.709]
[1717257923444,2.3252,3803.0,3802.4,0.709]
[1717257924338,2.3252,3803.0,3802.2,0.709]
[1717257924504,0.55,3802.9,3802.2,0.709]
[1717257930340,0.55,3802.9,3801.8,2.63027]
[1717257930503,0.55,3802.9,3802.2,0.709]
[1717257934347,0.55,3802.9,3802.1,0.709]
[1717257941246,0.55,3802.9,3802.4,0.709]
[1717257946853,0.55,3802.9,3802.2,0.709]
[1717257956835,2.3252,3803.0,3802.2,2.3482]
[1717257957034,4.9722,3803.2,3802.8,0.709]
[1717257957575,2.3428,3803.4,3803.0,0.709]
[1717257957877,3.0,3804.1,3802.1,7.32]
[1717257957878,2.3428,3804.1,3803.2,0.709]
[1717257958170,2.3428,3804.1,3803.5,0.709]
[1717257959375,2.3428,3804.1,3803.2,0.709]
[1717257960570,0.55,3804.0,3803.2,0.709]
[1717257961737,3.0,3804.6,3803.8,0.709]
[1717257961942,3.0,3804.6,3803.1,2.62938]
[1717257961943,2.3428,3804.5,3804.0,0.709]
[1717257962564,2.3428,3804.5,3803.8,0.709]
[1717257963468,0.55,3804.4,3804.0,0.709]
[1717257963643,0.55,3804.4,3803.8,0.709]
[1717257964859,0.55,3804.4,3804.0,0.709]
[1717257969495,0.55,3804.4,3803.5,2.3482]
[1717257969712,0.55,3804.4,3803.8,0.709]
[1717257971906,0.55,3804.4,3803.9,0.709]
[1717257984820,0.55,3804.4,3804.1,0.709]
[1717258002646,2.3428,3804.5,3803.8,2.4578]
[1717258002961,3.0,3805.1,3804.4,2.4578]
[1717258002962,2.3243,3805.1,3804.4,2.4578]
[1717258003159,2.3243,3805.1,3804.9,0.709]
[1717258003516,2.62769,3805.7,3804.9,0.709]
[1717258003718,2.657969,3805.6,3804.9,0.709]
[1717258004140,3.0,3805.5,3804.9,0.709]
[1717258004966,3.0,3805.5,3804.4,2.4578]
[1717258005182,3.0,3805.5,3804.8,0.709]
[1717258005837,0.55,3805.4,3804.8,0.709]
[1717258006556,2.3466,3805.3,3804.8,0.709]
[1717258006747,5.3466,3805.3,3804.8,0.709]
[1717258013273,5.9696269,3805.3,3804.8,0.709]
[1717258013846,5.3466,3805.3,3804.8,0.709]
[1717258016065,3.0,3805.3,3804.8,0.709]
[1717258016267,3.0,3805.5,3804.8,0.709]
[1717258022791,2.4191,3805.6,3805.0,0.709]
[1717258023000,0.55,3805.5,3805.0,0.709]
[1717258024358,5.25644406,3806.3,3805.0,2.4016]
[1717258024589,5.25644406,3806.3,3805.7,0.709]
[1717258025172,5.25644406,3806.3,3805.5,0.709]
[1717258026667,0.55,3806.2,3805.5,0.709]
[1717258027288,2.83734406,3806.3,3805.7,0.709]
[1717258027490,2.83734406,3806.3,3805.9,0.709]
[1717258028001,2.83734406,3806.3,3805.8,0.709]
[1717258032221,2.83734406,3806.3,3806.0,0.709]
[1717258033673,2.83734406,3806.3,3805.8,0.709]
[1717258035603,2.83734406,3806.3,3805.4,2.4016]
[1717258035802,2.83734406,3806.3,3805.8,0.709]
[1717258046102,2.3965,3806.2,3805.8,0.709]
[1717258047797,2.3965,3806.2,3805.7,0.709]
[1717258062782,2.3965,3806.2,3805.1,12.37101]
[1717258062981,2.3948,3806.0,3804.8,2.4924]
[1717258063167,2.3948,3806.0,3805.4,0.709]
[1717258065480,2.3948,3806.0,3805.6,0.709]
[1717258074767,2.3948,3806.0,3805.4,0.709]
[1717258077803,2.3948,3806.0,3805.0,7.32]
[1717258077804,2.3948,3806.0,3805.6,0.709]
[1717258078204,2.62742,3806.1,3805.6,0.709]
[1717258078509,0.21012406,3806.3,3806.0,0.709]
[1717258079578,3.0,3806.4,3806.0,0.709]
[1717258079905,2.3482,3806.5,3806.0,0.709]
[1717258079906,5.3482,3806.5,3806.0,0.709]
[1717258080103,0.55,3806.4,3806.0,0.709]
[1717258082271,0.55,3806.4,3805.4,7.32]
[1717258082472,2.3482,3806.3,3805.7,0.709]
[1717258083606,2.3482,3806.3,3805.9,0.709]
[1717258083924,0.55,3806.4,3805.9,0.709]
[1717258085103,0.55,3806.4,3805.7,0.709]
[1717258087069,0.55,3806.4,3805.9,0.709]
[1717258087673,2.3482,3806.5,3806.1,0.709]
[1717258088503,2.62705,3806.6,3806.1,0.709]
[1717258088739,2.4098,3806.7,3806.3,0.709]
[1717258089091,2.4098,3806.7,3806.1,0.709]
[1717258090616,3.0,3807.0,3806.1,0.709]
[1717258090812,0.55,3806.9,3806.3,0.709]
[1717258091418,0.55,3806.9,3805.9,0.0525439]
[1717258091718,0.55,3806.9,3806.3,0.709]
[1717258096534,0.55,3806.9,3806.1,0.709]
[1717258098755,2.4478,3806.8,3806.1,0.709]
[1717258098904,5.07477,3806.7,3806.1,0.709]
[1717258099104,5.07477,3806.7,3805.9,0.709]
[1717258101780,2.62709,3806.5,3805.5,2.62774]
[1717258101937,2.4478,3806.4,3805.7,0.709]
[1717258102531,2.62723,3806.3,3805.4,7.32]
[1717258102747,2.62723,3806.3,3805.7,0.709]
[1717258106338,2.62723,3806.3,3805.9,0.709]
[1717258110974,2.3004,3806.8,3805.9,0.709]
[1717258111136,0.55,3806.7,3805.9,0.709]
[1717258113892,0.55,3806.7,3806.1,0.709]
[1717258114596,2.3004,3806.8,3806.3,0.709]
[1717258116215,2.3004,3806.8,3806.5,0.709]
[1717258116413,2.3004,3806.8,3806.3,0.709]
[1717258124911,2.3004,3806.8,3806.1,0.709]
[1717258132752,2.3004,3806.8,3805.9,2.62747]
[1717258134190,2.3004,3806.8,3805.9,3.33647]
[1717258142493,2.4267,3806.6,3805.4,9.9478]
[1717258142695,2.62723,3806.3,3805.4,7.32]
[1717258142879,2.4267,3806.1,3805.4,7.32]
[1717258143264,0.55,3806.0,3805.4,7.32]
[1717258143779,0.55,3806.0,3805.5,0.709]
[1717258145772,2.4267,3805.9,3805.5,0.709]
[1717258146159,2.4267,3805.9,3805.4,0.709]
[1717258148995,2.4267,3805.9,3804.9,9.94814]
[1717258149204,2.4267,3805.9,3805.4,0.709]
[1717258169128,2.4267,3805.9,3804.9,2.62814]
[1717258169329,2.4267,3805.9,3805.5,0.709]
[1717258175834,2.4267,3805.9,3804.9,2.62814]
[1717258176052,2.4267,3805.9,3805.4,0.709]
[1717258181314,2.4267,3805.9,3804.9,2.62814]
[1717258181637,2.4267,3805.9,3805.3,0.709]
[1717258187635,2.288,3805.7,3804.9,2.62814]
[1717258187872,2.288,3805.7,3805.2,0.709]
[1717258192342,0.55,3805.6,3804.8,7.32]
[1717258192662,2.3918,3805.5,3805.1,0.709]
[1717258192839,2.3918,3805.5,3804.8,7.32]
[1717258193044,2.3918,3805.4,3804.8,7.32]
[1717258194464,0.55,3805.3,3804.8,7.32]
[1717258194666,2.3918,3805.2,3804.8,7.32]
[1717258195734,2.3918,3805.2,3804.6,0.709]
[1717258199531,2.62807,3805.1,3804.3,7.32]
[1717258199730,2.9418,3805.0,3804.4,0.709]
[1717258201175,2.9418,3805.0,3803.9,2.62885]
[1717258201521,2.9418,3805.0,3804.2,0.709]
[1717258205982,2.9418,3805.0,3804.4,0.709]
[1717258211985,2.9418,3805.0,3804.3,0.709]
[1717258213100,2.3487,3804.8,3804.1,0.709]
[1717258213271,2.3487,3804.6,3804.1,0.709]
[1717258218995,2.3487,3804.6,3803.8,7.32]
[1717258219175,0.55,3804.5,3803.8,7.32]
[1717258219354,0.55,3804.5,3804.0,0.709]
[1717258219792,2.3487,3804.6,3804.2,0.709]
[1717258222793,2.3487,3804.6,3804.1,0.709]
[1717258227201,2.3487,3804.6,3803.8,7.32]
[1717258227487,2.4543,3804.4,3803.8,7.32]
[1717258227929,2.4543,3804.4,3803.7,0.709]
[1717258228938,2.4543,3804.4,3803.9,0.709]
[1717258229635,2.4543,3804.4,3803.4,2.62918]
[1717258229806,2.4543,3804.4,3803.9,0.709]
[1717258234701,3.17848,3804.5,3804.1,0.709]
[1717258234920,2.62848,3804.5,3804.1,0.709]
[1717258239211,2.62848,3804.5,3803.5,2.2781]
[1717258239437,2.62848,3804.5,3804.0,0.709]
[1717258240951,2.3605,3804.4,3803.5,2.2781]
[1717258241164,2.3605,3804.4,3803.4,9.94918]
[1717258241369,2.3605,3804.4,3803.8,0.709]
[1717258243343,2.3605,3804.4,3803.4,9.94918]
[1717258243514,2.3605,3804.4,3803.9,0.709]
[1717258243713,2.3605,3804.4,3803.4,9.94918]
[1717258244009,0.55,3804.3,3803.8,0.709]
[1717258245567,0.55,3804.3,3803.4,9.94918]
[1717258245859,0.55,3804.3,3803.8,0.709]
[1717258251818,2.2824,3804.2,3803.8,0.709]
[1717258256335,0.55,3804.1,3803.4,7.32]
[1717258256547,2.2824,3804.0,3803.4,7.32]
[1717258256763,2.2824,3804.0,3803.6,0.709]
[1717258265889,2.2824,3804.0,3803.8,0.709]
[1717258267278,2.3061,3804.3,3803.8,0.709]
[1717258267484,2.3061,3804.3,3804.0,0.709]
[1717258276901,2.799558,3804.3,3803.5,3.33815]
[1717258280217,2.799558,3804.3,3803.5,0.709]
[1717258284316,2.3061,3804.3,3803.5,0.709]
[1717258284607,2.3061,3804.3,3803.7,0.709]
[1717258302537,2.3061,3804.3,3803.0,9.94945]
[1717258302735,2.3061,3804.3,3803.5,0.709]
[1717258307051,2.3061,3804.3,3803.6,0.709]
[1717258312160,2.3061,3804.3,3803.8,0.709]
[1717258316157,2.2991,3804.3,3803.8,0.709]
[1717258316368,2.2991,3804.3,3803.6,0.709]
[1717258318758,2.6287,3804.2,3803.0,9.94945]
[1717258319066,2.62882,3804.0,3803.0,9.94945]
[1717258319266,3.05542929,3803.9,3803.4,0.709]
[1717258319436,3.05542929,3803.9,3803.0,9.94945]
[1717258319437,2.4397,3803.7,3803.0,7.32]
[1717258319794,1.259,3803.9,3803.0,7.32]
[1717258319795,2.4397,3803.5,3803.0,7.32]
[1717258319947,2.4397,3803.5,3802.8,0.709]
[1717258320331,2.4397,3803.5,3802.5,9.94981]
[1717258320657,2.4397,3803.5,3802.8,0.709]
[1717258321968,2.4397,3803.5,3802.5,9.94981]
[1717258322268,2.4397,3803.5,3802.9,0.709]
[1717258323061,2.62923,3803.4,3802.5,7.32]
[1717258323367,2.4397,3803.3,3802.5,7.32]
[1717258323568,2.4397,3803.3,3802.6,0.709]
[1717258324441,2.69511718,3803.2,3802.5,7.32]
[1717258324650,2.9897,3803.1,3802.4,0.709]
[1717258324845,3.05544432,3803.1,3802.4,0.709]
[1717258325168,2.4397,3802.9,3802.0,9.95016]
[1717258325468,0.06574657,3802.8,3802.0,2.63016]
[1717258325646,2.4397,3802.9,3802.4,0.709]
[1717258329131,2.62967,3802.8,3801.4,2.63054]
[1717258329369,2.4846,3802.7,3801.8,0.709]
[1717258329692,2.4846,3802.7,3801.4,2.63054]
[1717258329840,2.4846,3802.7,3801.9,0.709]
[1717258330036,2.4846,3802.5,3801.9,0.709]
[1717258331466,2.4846,3802.5,3801.7,0.709]
[1717258333193,2.4846,3802.5,3801.8,0.709]
[1717258333194,2.62985,3802.5,3801.8,0.709]
[1717258333481,2.4009,3802.4,3801.8,0.709]
[1717258333860,3.24574453,3802.3,3800.9,2.63092]
[1717258334117,3.17999,3802.3,3801.6,0.709]
[1717258335849,2.46665855,3802.2,3800.9,2.63092]
[1717258336184,2.4009,3802.0,3800.9,2.63092]
[1717258336390,0.06576063,3801.9,3801.4,0.709]
[1717258338487,0.06576063,3801.9,3800.9,2.63092]
[1717258338686,0.06576063,3801.9,3801.5,0.709]
[1717258339491,0.06576063,3801.9,3800.9,2.63092]
[1717258339791,2.4009,3801.8,3800.9,2.63092]
[1717258339997,2.9509,3801.8,3801.3,0.709]
[1717258340165,2.9509,3801.8,3801.5,0.709]
[1717258340363,2.9509,3801.8,3800.9,2.63092]
[1717258340595,2.9509,3801.8,3801.5,0.709]
[1717258342165,2.9509,3801.8,3800.9,2.63092]
[1717258342701,2.9509,3801.8,3801.4,0.709]
[1717258349324,2.9509,3801.8,3800.9,2.63092]
[1717258349808,2.9509,3801.8,3801.2,0.709]
[1717258350773,2.4221,3801.6,3801.2,0.709]
[1717258351295,2.4221,3801.6,3801.0,0.709]
[1717258352074,2.4221,3801.6,3801.2,0.709]
[1717258352403,2.4221,3801.6,3801.1,0.709]
[1717258353124,2.4221,3801.6,3800.3,2.3043]
[1717258353411,2.3695,3801.4,3800.7,0.709]
[1717258353765,2.3695,3801.3,3800.7,0.709]
[1717258354470,2.3695,3801.3,3800.9,0.709]
[1717258357490,2.3695,3801.8,3801.1,0.709]
[1717258357820,2.3695,3801.8,3801.4,0.709]
[1717258361895,2.3695,3801.8,3801.6,0.709]
[1717258362110,2.63022,3802.0,3801.6,0.709]
[1717258362788,2.63022,3802.0,3801.8,0.709]
[1717258364096,2.63022,3802.0,3801.6,0.709]
[1717258365507,5.3695,3802.3,3801.6,0.709]
[1717258365720,0.55,3802.2,3801.0,2.4615]
[1717258366032,0.55,3802.2,3801.5,0.709]
[1717258366593,2.3668,3802.1,3801.5,0.709]
[1717258371437,4.99696,3802.1,3801.3,0.709]
[1717258371938,2.498,3801.9,3801.1,0.709]
[1717258372147,2.498,3801.8,3801.1,0.709]
[1717258373348,2.498,3801.8,3800.7,2.63107]
[1717258373650,2.498,3801.8,3801.1,0.709]
[1717258373834,2.498,3801.8,3800.7,2.63107]
[1717258373835,2.63041,3801.7,3800.7,2.63107]
[1717258374029,2.498,3801.6,3801.1,0.709]
[1717258374207,2.498,3801.4,3800.2,5.01633]
[1717258374412,2.498,3801.4,3800.9,0.709]
[1717258374612,2.498,3801.4,3801.1,0.709]
[1717258375737,2.63056,3801.5,3801.1,0.709]
[1717258376052,2.63056,3801.5,3801.3,0.709]
[1717258377127,2.498,3801.6,3801.3,0.709]
[1717258380848,0.55,3801.7,3801.3,0.709]
[1717258381052,0.55,3801.9,3801.3,0.709]
[1717258383780,2.63022,3802.0,3801.3,0.709]
[1717258388981,2.63022,3802.0,3801.5,0.709]
[1717258389456,3.143042,3802.0,3801.2,0.709]
[1717258389685,2.63022,3802.0,3801.2,0.709]
[1717258390013,2.63022,3802.0,3801.4,0.709]
[1717258394318,2.63022,3802.0,3801.6,0.709]
[1717258401598,2.2732,3802.3,3801.6,0.709]
[1717258401798,2.2732,3802.3,3801.1,2.4929]
[1717258401799,2.2732,3802.3,3801.8,0.709]
[1717258402948,2.62988,3802.5,3802.0,0.709]
[1717258403930,2.62988,3802.5,3801.8,0.709]
[1717258406471,2.62988,3802.5,3802.0,0.709]
[1717258407522,2.62988,3802.5,3801.4,2.63057]
[1717258407722,2.62988,3802.5,3801.8,0.709]
[1717258410860,0.55,3802.4,3801.8,0.709]
[1717258411049,0.55,3802.4,3801.4,2.63057]
[1717258411050,2.4985,3802.3,3801.7,0.709]
[1717258411357,0.55,3802.2,3801.7,0.709]
[1717258412343,0.55,3802.2,3801.0,9.7974]
[1717258412684,0.55,3802.2,3801.5,0.709]
[1717258414353,0.55,3802.2,3801.0,9.7974]
[1717258414553,0.55,3802.2,3801.6,0.709]
[1717258415902,0.06576116,3802.1,3801.6,0.709]
[1717258416714,0.06576113,3802.1,3801.6,0.709]
[1717258416887,3.0301,3802.0,3801.0,9.7974]
[1717258417071,3.0301,3802.0,3801.5,0.709]
[1717258417281,3.0301,3802.0,3801.7,0.709]
[1717258417609,2.4801,3802.0,3801.7,0.709]
[1717258418704,2.4801,3802.0,3801.5,0.709]
[1717258421506,2.4801,3802.0,3801.5,0.729]
[1717258430381,2.4801,3802.0,3801.5,0.02]
[1717258430873,2.4801,3802.0,3801.5,0.729]
[1717258432480,2.4801,3802.0,3801.5,0.02]
[1717258432773,2.4801,3802.0,3801.6,0.709]
[1717258433154,2.4801,3802.0,3801.5,0.02]
[1717258433378,2.4801,3802.0,3801.5,0.729]
[1717258435167,2.4801,3802.0,3801.5,0.02]
[1717258435371,2.4801,3802.0,3801.5,0.729]
[1717258440103,2.4408,3801.8,3801.5,0.02]
[1717258440409,0.06576655,3801.7,3801.5,0.02]
[1717258441285,2.63029,3801.9,3801.5,0.02]
[1717258441286,2.4408,3801.6,3801.5,0.02]
[1717258441487,2.9908,3801.6,3801.5,0.02]
[1717258441687,3.623809,3801.6,3801.5,0.02]
[1717258441878,2.4408,3801.6,3801.5,0.02]
[1717258447971,2.9908,3801.6,3801.5,0.02]
[1717258453895,2.63029,3801.9,3801.5,0.02]
[1717258454101,0.55,3801.8,3801.5,0.02]
[1717258460084,1.1613117,3801.8,3801.5,0.02]
[1717258461400,2.6304,3801.7,3801.5,0.02]
[1717258463590,2.9718,3801.6,3801.5,0.02]
[1717258470429,0.55,3801.6,3801.5,0.02]
[1717258483243,0.511027,3802.0,3801.5,0.02]
[1717258483446,0.55,3801.9,3801.5,0.02]
[1717258494244,3.27470316,3802.1,3801.5,0.02]
[1717258497986,3.27470316,3802.1,3801.5,0.729]
[1717258498196,2.63009,3802.2,3802.0,0.709]
[1717258498350,2.62975,3802.7,3802.0,3.1625]
[1717258498555,2.62975,3802.7,3802.2,0.709]
[1717258500795,2.62975,3802.7,3802.4,0.709]
[1717258501355,2.62939,3803.2,3802.6,0.709]
[1717258501555,2.62939,3803.2,3802.7,2.4535]
[1717258502597,2.62939,3803.2,3802.4,2.4535]
[1717258503287,2.62956,3803.0,3802.0,2.4535]
[1717258503494,2.62956,3803.0,3802.0,3.1625]
[1717258504132,2.62956,3803.0,3802.2,0.709]
[1717258504464,2.62956,3803.0,3802.0,2.4535]
[1717258505236,2.62956,3803.0,3802.1,0.709]
[1717258518917,2.62956,3803.0,3802.3,0.709]
[1717258526072,2.62956,3803.0,3802.5,0.709]
[1717258542777,2.4529,3803.3,3802.7,0.709]
[1717258542990,2.4529,3803.3,3802.9,0.709]
[1717258543398,3.0,3803.4,3802.9,0.709]
[1717258548298,3.0,3803.4,3802.7,0.709]
[1717258548905,0.709,3803.0,3802.4,7.32]
[1717258549102,5.10641,3802.7,3802.4,7.32]
[1717258552687,0.55,3802.6,3802.4,7.32]
[1717258553121,0.55,3802.6,3801.8,0.709]
[1717258553923,0.55,3802.6,3802.0,0.709]
[1717258556034,0.61575278,3802.6,3802.0,0.709]
[1717258556690,0.61575278,3802.6,3801.8,0.709]
[1717258557930,2.62987,3802.5,3801.5,7.34]
[1717258558116,2.8272,3802.4,3801.6,0.709]
[1717258560740,2.63,3802.3,3801.5,7.34]
[1717258560946,0.55,3802.2,3801.6,0.709]
[1717258562041,2.2772,3802.1,3801.5,0.02]
[1717258566639,2.63021,3802.0,3801.5,0.02]
[1717258567728,2.4582,3801.9,3801.5,0.02]
[1717258568043,3.18034,3801.8,3801.5,0.02]
[1717258569516,2.52396923,3801.7,3801.5,0.02]
[1717258569829,0.55,3801.6,3801.5,0.02]
[1717258570363,3.07396943,3801.6,3801.5,0.02]
[1717258570507,3.71530037,3801.6,3801.5,0.02]
[1717258573510,3.64953094,3801.6,3801.5,0.02]
[1717258578359,4.35853094,3801.6,3801.5,0.02]
[1717258578560,3.64953094,3801.6,3801.5,0.02]
[1717258582959,7.6331396,3801.6,3801.5,0.02]
[1717258583866,6.9241396,3801.6,3801.5,0.02]
[1717258584070,7.6331396,3801.6,3801.5,0.02]
[1717258584900,2.3025,3801.2,3800.0,9.6]
[1717258585031,3.0115,3801.0,3800.0,10.309]
[1717258585231,2.3025,3801.0,3800.1,0.709]
[1717258585483,0.55,3800.9,3800.1,0.709]
[1717258585979,2.63116,3800.6,3800.1,0.709]
[1717258586183,0.55,3800.5,3800.0,11.8704]
[1717258586355,0.55,3800.5,3800.2,0.709]
[1717258586949,0.55,3800.5,3800.0,11.8704]
[1717258587155,0.55,3800.5,3800.2,0.709]
[1717258587677,3.0132,3800.5,3800.2,0.709]
[1717258587977,3.0132,3800.5,3800.0,10.309]
[1717258597506,2.63132,3800.4,3800.0,9.6]
[1717258597796,0.55,3800.3,3800.0,9.6]
[1717258598299,0.61579221,3800.3,3800.0,9.6]
[1717258598595,0.55,3800.3,3800.0,9.6]
[1717258598969,0.6157922,3800.3,3800.0,9.6]
[1717258599794,0.55,3800.3,3800.0,9.6]
[1717258601152,2.3454,3800.2,3800.0,9.6]
[1717258601397,0.55,3800.1,3800.0,9.6]
[1717258601985,0.55,3800.3,3800.0,9.6]
[1717258603771,2.8954,3800.3,3800.0,9.6]
[1717258604085,0.55,3800.3,3800.0,9.6]
[1717258605618,2.63144,3800.2,3800.0,9.6]
[1717258605802,2.8954,3800.1,3800.0,9.6]
[1717258606901,0.55,3800.1,3800.0,9.6]
[1717258609404,3.5507,3800.1,3800.0,9.6]
[1717258609610,6.5507,3800.1,3800.0,9.6]
[1717258609777,7.745814,3800.1,3800.0,9.6]
[1717258610525,7.036814,3800.1,3800.0,9.6]
[1717258612988,7.745814,3800.1,3800.0,9.6]
[1717258614028,7.036814,3800.1,3800.0,7.1]
[1717258614316,8.02050019,3800.1,3800.0,7.1]
[1717258614821,10.78950019,3800.1,3800.0,7.1]
[1717258615498,10.78950019,3800.1,3800.0,7.041]
[1717258616029,11.35861305,3800.1,3800.0,7.041]
[1717258616385,10.78950019,3800.1,3800.0,7.041]
[1717258621998,7.81197,3800.0,3799.9,2.6e-06]